bitfinex/quotes_ETHUSD_20250210
["timestamp","ask_amount","ask_price","bid_price","bid_amount"]
[1739190275321,3.76047,2659.3,2659.1,0.04120362]
[1739190275627,3.76047,2659.3,2659.2,0.04115072]
[1739190276003,3.76047,2659.3,2658.8,3.76101]
[1739190276203,3.76047,2659.3,2659.2,0.04115072]
[1739190276422,3.76047,2659.3,2658.8,7.52201]
[1739190276621,3.76047,2659.3,2659.2,0.04115072]
[1739190276992,3.76047,2659.3,2658.9,3.76091]
[1739190277194,3.76047,2659.3,2659.2,0.04115072]
[1739190277394,3.76047,2659.3,2658.9,3.76091]
[1739190277604,3.76047,2659.3,2659.2,0.04115072]
[1739190277833,3.76047,2659.3,2658.9,2.16843776]
[1739190278041,3.76047,2659.3,2659.2,0.04115072]
[1739190278207,3.76026,2659.4,2659.2,0.04115072]
[1739190278405,3.76004,2659.6,2659.1,3.76058]
[1739190278710,7.51986,2659.7,2659.3,0.79879783]
[1739190278921,7.51986,2659.7,2659.3,0.7577]
[1739190278922,3.75991,2659.7,2659.3,0.7577]
[1739190279115,3.76001,2659.6,2659.4,0.04104493]
[1739190279638,3.0,2659.7,2659.4,0.04104493]
[1739190279840,6.75982,2659.7,2659.4,0.04104493]
[1739190280509,3.75998,2659.6,2659.4,0.04104493]
[1739190280739,3.75987,2659.7,2659.4,0.04104493]
[1739190280939,6.75987,2659.7,2659.4,0.04104493]
[1739190281143,8.30088,2660.2,2659.6,3.75987]
[1739190281445,3.75932,2660.1,2659.7,0.04080524]
[1739190282141,4.54168,2660.2,2659.7,3.80059524]
[1739190282347,3.75907,2660.3,2659.8,6.69510776]
[1739190282507,3.0,2660.4,2659.8,6.69510776]
[1739190282853,3.0,2660.4,2660.1,2.16843776]
[1739190283307,4.54084,2660.8,2660.2,3.7995709]
[1739190283507,8.29924,2660.8,2660.2,3.7995709]
[1739190283819,8.29919,2660.8,2660.3,0.767]
[1739190284015,3.75822,2660.9,2660.4,5.92717776]
[1739190284214,3.75822,2660.9,2660.4,5.96740768]
[1739190284528,3.75822,2660.9,2660.4,2.20866768]
[1739190284839,3.75831,2660.8,2660.4,2.20866768]
[1739190285417,0.7825,2661.1,2660.4,5.96740768]
[1739190285739,3.75806,2661.0,2660.5,3.75863]
[1739190286036,3.75806,2661.0,2660.6,0.03996761]
[1739190286541,3.75821,2660.9,2660.4,5.92717776]
[1739190286839,3.75826,2660.8,2660.4,2.16843776]
[1739190287007,3.75826,2660.8,2660.5,0.04002046]
[1739190287610,3.7825,2661.1,2660.5,0.04002046]
[1739190287843,3.75811,2661.0,2660.5,0.04002046]
[1739190288547,3.75811,2661.0,2660.5,3.79870046]
[1739190289431,3.7582,2660.9,2660.5,0.04002046]
[1739190289633,3.75762,2661.3,2660.7,2.93543776]
[1739190289837,3.75762,2661.3,2660.8,3.75824]
[1739190290017,3.75762,2661.3,2660.8,3.79810193]
[1739190290219,3.75771,2661.2,2660.8,0.03986193]
[1739190290936,3.75762,2661.3,2660.8,3.79811193]
[1739190291136,3.75736,2661.5,2660.9,3.75805]
[1739190291323,3.75743,2661.4,2661.0,2.16843776]
[1739190291523,3.75743,2661.4,2661.0,2.20798347]
[1739190292565,3.75736,2661.5,2661.0,2.20798347]
[1739190292870,3.9031065,2661.6,2661.1,0.767]
[1739190293243,3.9031065,2661.6,2661.2,0.03944006]
[1739190293944,0.1459465,2661.6,2661.3,2.16843776]
[1739190294151,0.1459465,2661.6,2661.3,5.92597776]
[1739190294325,0.1459465,2661.6,2661.4,0.03933443]
[1739190294518,0.1459465,2661.6,2661.5,3.75727]
[1739190294723,0.1459465,2661.6,2661.5,4.54897]
[1739190295068,0.1459465,2661.6,2661.5,4.58734455]
[1739190295826,0.1459465,2661.6,2661.5,0.03837455]
[1739190296323,0.1459465,2661.6,2661.3,2.96013776]
[1739190296629,0.1459465,2661.6,2661.4,0.04102295]
[1739190297259,0.1459465,2661.6,2661.4,3.79834295]
[1739190297753,0.1459465,2661.6,2661.4,3.79842295]
[1739190298143,0.1459465,2661.6,2661.4,0.04102295]
[1739190300468,3.75727,2661.5,2661.4,0.04102295]
[1739190300763,3.75779,2661.2,2660.8,0.7917]
[1739190301266,3.75751,2661.4,2660.9,0.06316918]
[1739190301731,3.75756,2661.3,2660.9,0.06316918]
[1739190301929,3.75798,2661.0,2660.9,0.06316918]
[1739190302349,3.75824,2660.9,2660.5,0.7917]
[1739190302660,3.75828,2660.8,2660.5,0.7917]
[1739190302833,3.75826,2660.9,2660.5,0.7917]
[1739190303352,3.75831,2660.8,2660.5,0.7917]
[1739190303665,3.75798,2661.0,2660.5,0.7917]
[1739190303854,3.75824,2660.9,2660.5,0.7917]
[1739190304535,3.75798,2661.0,2660.5,0.7917]
[1739190304735,3.75813,2660.9,2660.5,0.7917]
[1739190306668,3.75776,2661.2,2660.7,2.16843776]
[1739190306963,3.75799,2661.0,2660.7,2.16843776]
[1739190307469,3.75787,2661.1,2660.7,2.16843776]
[1739190308653,0.8204,2661.4,2660.7,2.16843776]
[1739190308860,3.9031765,2661.6,2661.0,9.68426776]
[1739190309165,3.9031665,2661.6,2661.0,2.16843776]
[1739190309365,0.1459465,2661.6,2661.2,3.75769]
[1739190309868,0.1459465,2661.6,2661.3,2.16843776]
[1739190311131,0.1459465,2661.6,2661.3,5.92595776]
[1739190311361,0.1459465,2661.6,2661.4,3.75734]
[1739190311838,0.1459465,2661.6,2661.5,3.75727]
[1739190312167,0.1459465,2661.6,2661.5,4.58457]
[1739190315038,0.1459465,2661.6,2661.5,4.62213286]
[1739190315441,0.1459465,2661.6,2661.5,4.58457]
[1739190327858,0.1459465,2661.6,2661.5,0.8273]
[1739190328085,0.1459465,2661.6,2661.3,5.92597776]
[1739190328394,0.1459465,2661.6,2661.4,3.75731]
[1739190328701,0.1459465,2661.6,2661.4,3.75739]
[1739190329056,0.1459465,2661.6,2661.3,9.68345776]
[1739190329263,0.1459465,2661.6,2661.3,5.92591776]
[1739190329484,0.1459465,2661.6,2661.3,9.68339776]
[1739190329894,0.1459465,2661.6,2661.3,5.92591776]
[1739190330299,0.1459465,2661.6,2661.4,3.75735]
[1739190330864,0.1459465,2661.6,2661.3,5.92591776]
[1739190331067,0.1459465,2661.6,2661.4,3.75742]
[1739190332196,0.1459465,2661.6,2661.3,5.92591776]
[1739190332510,0.1459465,2661.6,2661.5,3.75727]
[1739190333387,0.1459465,2661.6,2661.4,3.75741]
[1739190334179,0.1459465,2661.6,2661.3,2.16843776]
[1739190334395,4.6542965,2661.6,2661.3,2.16843776]
[1739190335300,0.8971465,2661.6,2661.3,2.16843776]
[1739190335497,4.6542865,2661.6,2661.3,2.16843776]
[1739190336204,0.8971465,2661.6,2661.3,2.16843776]
[1739190336378,3.75735,2661.5,2661.3,2.16843776]
[1739190336766,0.8971465,2661.6,2661.3,2.16843776]
[1739190337170,4.6542865,2661.6,2661.3,2.16843776]
[1739190337578,0.8971465,2661.6,2661.3,2.16843776]
[1739190338404,0.1459465,2661.6,2661.3,5.92589776]
[1739190338605,0.1459465,2661.6,2661.5,3.75727]
[1739190338770,0.7512,2661.5,2661.4,3.75742]
[1739190339133,0.1459465,2661.6,2661.4,3.75735]
[1739190339701,0.1459465,2661.6,2661.3,5.92585776]
[1739190340087,0.1459465,2661.6,2661.4,3.75735]
[1739190340275,0.1459465,2661.6,2661.5,3.75727]
[1739190341371,0.1459465,2661.6,2661.4,3.75735]
[1739190342387,0.1459465,2661.6,2661.3,2.16843776]
[1739190342593,0.767,2661.5,2661.3,2.16843776]
[1739190343839,0.767,2661.5,2661.3,5.92596776]
[1739190344132,0.1459465,2661.6,2661.3,5.92596776]
[1739190344317,0.1459465,2661.6,2661.5,3.75727]
[1739190344818,0.1459465,2661.6,2661.5,3.79483495]
[1739190344998,0.1459465,2661.6,2661.5,3.75727]
[1739190345198,6.5e-06,2661.6,2661.5,13.16297218]
[1739190345440,6.5e-06,2661.6,2661.5,13.12541066]
[1739190345645,0.0162807,2662.4,2661.7,0.3778]
[1739190345785,0.0162807,2662.4,2662.3,6.74068776]
[1739190345983,0.0162807,2662.4,2662.3,7.32823781]
[1739190346185,0.0162807,2662.4,2662.3,7.32823535]
[1739190346485,0.767,2663.5,2662.3,7.32823535]
[1739190346486,0.767,2663.5,2663.2,3.75484]
[1739190346718,1.0548439,2663.7,2663.2,5.92327776]
[1739190346921,3.75427,2663.7,2663.2,5.92330776]
[1739190347326,3.1459465,2664.2,2663.3,5.12084]
[1739190347327,0.1459465,2664.2,2663.3,5.12084]
[1739190347618,0.1459465,2664.2,2663.3,4.57084]
[1739190347824,3.7537,2664.1,2663.3,4.57084]
[1739190347985,0.767,2663.8,2663.2,2.16843776]
[1739190348187,3.75427,2663.7,2663.2,2.16843776]
[1739190348384,3.75431,2663.6,2663.2,2.16843776]
[1739190348685,3.75485,2663.3,2662.9,2.16843776]
[1739190348889,0.767,2663.2,2662.9,2.16843776]
[1739190350452,3.7596,2663.4,2663.1,3.7549]
[1739190350453,0.005,2663.4,2663.1,3.7549]
[1739190350661,0.005,2663.4,2663.3,5.92317776]
[1739190351035,0.005,2663.4,2663.3,5.96071661]
[1739190351541,0.005,2663.4,2663.3,7.32681661]
[1739190352528,0.005,2663.4,2663.3,7.28927776]
[1739190352838,0.005,2663.4,2663.3,7.32681075]
[1739190353043,0.005,2663.4,2663.3,7.28927776]
[1739190355245,0.1459465,2664.2,2663.3,5.26843776]
[1739190355449,0.1459465,2664.2,2664.1,6.73914776]
[1739190355760,0.7903,2665.5,2664.9,5.92081776]
[1739190355927,4.54207,2665.5,2665.2,2.16843776]
[1739190356261,0.11659937,2665.7,2664.9,2.16843776]
[1739190356425,0.11659937,2665.7,2665.3,5.92024776]
[1739190356627,0.11659937,2665.7,2665.6,2.16843776]
[1739190356628,0.33470925,2665.7,2665.6,2.16843776]
[1739190357043,1.12500925,2665.7,2665.2,2.16843776]
[1739190357238,0.33470925,2665.7,2665.2,2.16843776]
[1739190357447,0.33470925,2665.7,2665.5,3.75156]
[1739190357644,0.33470925,2665.7,2665.5,2.65542649]
[1739190357842,0.33470925,2665.7,2665.5,6.40695649]
[1739190358255,0.33470925,2665.7,2665.6,3.7515]
[1739190358762,0.33470925,2665.7,2665.5,2.65542649]
[1739190360945,3.75165,2665.5,2665.2,2.65542649]
[1739190361175,3.75193,2665.3,2664.9,2.65542649]
[1739190361377,3.75223,2665.1,2664.9,2.65542649]
[1739190361565,3.75223,2665.1,2664.6,2.65542649]
[1739190361769,3.97033988,2665.1,2664.6,2.65542649]
[1739190361971,3.75249,2664.9,2664.6,2.65542649]
[1739190362265,3.75238,2665.0,2664.6,2.65542649]
[1739190362671,3.97048988,2665.0,2664.6,2.65542649]
[1739190363367,0.21810988,2665.0,2664.6,2.65542649]
[1739190364058,0.21810988,2665.0,2664.7,3.75274]
[1739190364276,0.21810988,2665.0,2664.6,2.65542649]
[1739190365001,3.97044988,2665.0,2664.6,2.65542649]
[1739190365369,0.21810988,2665.0,2664.6,2.65542649]
[1739190365570,0.21810988,2665.0,2664.6,6.40824649]
[1739190365999,0.21810988,2665.0,2664.6,2.65542649]
[1739190366470,3.97044988,2665.0,2664.6,2.65542649]
[1739190369203,3.97044988,2665.0,2664.0,0.7845]
[1739190369204,3.75343,2664.3,2664.0,2.65542649]
[1739190369403,3.75343,2664.3,2663.7,6.40950649]
[1739190369579,3.75356,2664.2,2663.7,6.40950649]
[1739190369780,0.21810988,2664.2,2663.7,6.40950649]
[1739190369984,3.97161988,2664.2,2663.7,6.40950649]
[1739190370804,0.21810988,2664.2,2663.7,6.40950649]
[1739190371203,0.21810988,2664.2,2663.7,2.65542649]
[1739190371404,0.21810988,2664.2,2663.4,2.65542649]
[1739190371613,3.75424,2663.7,2663.4,2.65542649]
[1739190371841,3.75462,2663.4,2663.1,2.65542649]
[1739190372200,7.50934,2663.4,2663.1,2.65542649]
[1739190372408,3.75484,2663.3,2662.8,2.65542649]
[1739190372711,3.75495,2663.2,2662.8,2.65542649]
[1739190372911,3.75518,2663.0,2662.5,2.65542649]
[1739190373308,0.7888,2663.1,2662.8,2.65542649]
[1739190373508,3.75525,2663.0,2662.5,2.65542649]
[1739190374012,0.19755632,2663.0,2662.8,2.65542649]
[1739190374199,0.19755632,2663.0,2662.5,2.65542649]
[1739190374398,0.19755632,2663.0,2662.5,6.41126649]
[1739190376355,3.75539,2662.9,2662.5,2.65542649]
[1739190376649,0.19755632,2663.0,2662.5,6.41126649]
[1739190376855,3.75541,2662.9,2662.5,2.65542649]
[1739190377806,3.95296632,2662.9,2662.5,2.65542649]
[1739190378005,0.19755632,2662.9,2662.5,2.65542649]
[1739190378563,0.19755632,2662.9,2662.5,6.41125649]
[1739190379038,3.95287632,2662.9,2662.5,2.65542649]
[1739190380974,0.19755632,2662.9,2662.5,6.41120649]
[1739190381376,0.19755632,2662.9,2662.8,2.65542649]
[1739190383544,1.00375632,2662.9,2662.5,2.65542649]
[1739190383744,7.51103,2662.8,2662.5,2.65542649]
[1739190383978,7.70858632,2662.8,2662.5,2.65542649]
[1739190384181,3.75558,2662.7,2662.5,2.65542649]
[1739190384690,3.75572,2662.6,2662.5,2.65542649]
[1739190384995,0.8062,2662.4,2662.0,3.46074005]
[1739190385154,3.75643,2662.1,2662.0,3.46074005]
[1739190385354,3.75643,2662.1,2661.9,2.65542649]
[1739190385559,3.75657,2662.0,2661.9,2.65542649]
[1739190385896,3.95412632,2662.0,2661.9,2.65542649]
[1739190389146,3.75722,2661.6,2661.3,2.65542649]
[1739190389650,7.51449,2661.6,2661.3,2.65542649]
[1739190389867,3.75729,2661.5,2661.3,2.65542649]
[1739190390262,3.95477632,2661.6,2661.0,2.65542649]
[1739190390597,0.19755632,2661.6,2661.0,2.65542649]
[1739190390803,3.75744,2661.4,2661.0,2.65542649]
[1739190392319,3.75784,2661.1,2660.7,2.65542649]
[1739190392515,3.75808,2661.0,2660.7,2.65542649]
[1739190392717,0.8062,2661.2,2660.4,6.11824788]
[1739190392919,7.51578,2661.1,2660.4,9.87699788]
[1739190393074,3.75817,2660.9,2660.4,9.87699788]
[1739190393274,3.75805,2661.0,2660.4,9.87699788]
[1739190393475,3.75784,2661.1,2660.7,2.65542649]
[1739190393867,3.75811,2661.0,2660.7,2.65542649]
[1739190394540,7.51616,2661.0,2660.7,2.65542649]
[1739190394739,3.75808,2661.0,2660.7,2.65542649]
[1739190394947,3.75806,2661.0,2660.7,2.65542649]
[1739190395169,4.9970794,2661.0,2660.7,2.65542649]
[1739190396325,3.75812,2660.9,2660.7,2.65542649]
[1739190397148,4.9971394,2660.9,2660.7,2.65542649]
[1739190397448,3.75869,2660.5,2660.4,6.11824788]
[1739190397599,3.75856,2660.6,2660.1,2.65542649]
[1739190397797,3.75856,2660.6,2660.1,6.41467649]
[1739190397798,4.56476,2660.6,2660.1,6.41467649]
[1739190397998,2.0452194,2660.6,2660.2,3.75908]
[1739190400040,2.0452194,2660.6,2660.4,3.75882]
[1739190400206,1.2390194,2660.6,2660.5,3.75869]
[1739190400803,1.2390194,2660.6,2660.1,6.41459649]
[1739190400804,5.7547694,2660.6,2660.1,6.41459649]
[1739190401051,5.7547694,2660.6,2660.1,2.65542649]
[1739190401351,5.7547694,2660.6,2660.1,6.41465649]
[1739190401719,1.9961194,2660.6,2660.1,6.41467649]
[1739190402114,5.7547594,2660.6,2660.1,6.41458649]
[1739190402467,3.75871,2660.5,2660.1,2.65542649]
[1739190402635,5.7547594,2660.6,2660.1,2.65542649]
[1739190402840,1.2390194,2660.6,2660.3,3.75894]
[1739190404309,1.2390194,2660.6,2660.2,3.75911]
[1739190404672,1.2390194,2660.6,2660.4,2.65542649]
[1739190404817,1.2390194,2660.6,2660.5,3.75869]
[1739190405143,1.2390194,2660.6,2660.4,6.41423649]
[1739190405346,1.2390194,2660.6,2660.4,2.65542649]
[1739190406268,3.75906,2660.3,2659.8,6.41499649]
[1739190406569,3.75906,2660.3,2659.8,6.41502649]
[1739190406776,3.75888,2660.4,2660.1,2.65542649]
[1739190407079,4.9978994,2660.4,2660.1,2.65542649]
[1739190407280,3.75906,2660.3,2660.1,2.65542649]
[1739190407438,0.7571,2660.0,2659.5,6.41541649]
[1739190408076,5.7556094,2660.0,2659.5,6.41541649]
[1739190408422,5.7556094,2660.0,2659.6,3.75995]
[1739190408423,1.9961194,2660.0,2659.6,3.75995]
[1739190408630,1.9961194,2660.0,2659.5,10.17543649]
[1739190408934,1.2390194,2660.0,2659.9,3.75953]
[1739190409158,1.2390194,2660.0,2659.8,6.41509649]
[1739190409678,1.2390194,2660.0,2659.8,6.41499649]
[1739190409863,1.2390194,2660.0,2659.9,3.75953]
[1739190410074,1.2390194,2660.0,2659.8,2.65542649]
[1739190410388,1.2390194,2660.0,2659.9,3.75953]
[1739190410769,1.2390194,2660.0,2659.9,4.55183]
[1739190410973,1.04542261,2660.0,2659.9,4.55183]
[1739190413683,1.04542261,2660.0,2659.9,5.10183]
[1739190414477,2.61e-06,2660.0,2659.9,5.47963]
[1739190415984,2.61e-06,2660.0,2659.9,5.10183]
[1739190417699,2.61e-06,2660.0,2659.9,5.13941182]
[1739190417896,0.7757,2661.5,2660.9,2.65542649]
[1739190418177,0.7757,2661.5,2661.2,3.75769]
[1739190418333,0.7757,2661.5,2661.0,7.51576]
[1739190418537,0.7757,2661.5,2661.0,3.75787]
[1739190418774,0.7757,2661.5,2661.0,7.51578]
[1739190419138,0.7757,2661.5,2661.2,3.75769]
[1739190420056,0.7757,2661.5,2661.2,3.75761]
[1739190420258,0.7757,2661.5,2661.2,6.41303649]
[1739190420463,0.7757,2661.5,2661.2,2.65542649]
[1739190420762,0.7757,2661.5,2661.3,3.75752]
[1739190421173,0.7757,2661.5,2661.2,2.65542649]
[1739190421773,0.7757,2661.5,2661.2,6.41307649]
[1739190421942,0.7757,2661.5,2661.3,3.75749]
[1739190422559,3.7575,2661.4,2660.9,2.65542649]
[1739190422745,3.75828,2660.8,2660.6,2.65542649]
[1739190422942,0.7757,2661.0,2660.6,2.65542649]
[1739190423276,3.75824,2660.9,2660.6,2.65542649]
[1739190423677,3.75823,2660.9,2660.6,2.65542649]
[1739190423969,3.75832,2660.8,2660.6,2.65542649]
[1739190424422,7.51644,2660.9,2660.6,2.65542649]
[1739190424578,3.75895,2660.4,2660.0,2.65542649]
[1739190424898,3.75908,2660.3,2659.7,6.41515649]
[1739190425100,3.75908,2660.3,2659.7,2.65542649]
[1739190425252,0.7757,2660.1,2659.7,2.65542649]
[1739190425442,4.53499,2660.1,2659.7,2.65542649]
[1739190425751,3.75941,2660.0,2659.7,2.65542649]
[1739190426371,4.53499,2660.1,2659.7,2.65542649]
[1739190426590,8.29435,2660.1,2659.7,2.65542649]
[1739190426795,3.75954,2659.9,2659.7,2.65542649]
[1739190427439,4.53499,2660.1,2659.7,2.65542649]
[1739190427740,3.76002,2659.6,2659.1,7.18272649]
[1739190427947,0.7757,2659.5,2659.1,2.65542649]
[1739190428165,0.7757,2659.5,2659.2,0.06241561]
[1739190429993,3.76038,2659.3,2659.2,0.06241561]
[1739190430296,3.76075,2659.1,2658.6,3.46516588]
[1739190431005,3.76123,2658.7,2658.6,3.46516588]
[1739190431182,3.76123,2658.7,2658.2,5.8336029]
[1739190431183,3.76168,2658.4,2658.2,2.65542649]
[1739190431353,3.7618,2658.3,2658.2,2.65542649]
[1739190431759,3.76222,2658.0,2657.9,2.65542649]
[1739190432259,3.76237,2657.9,2657.6,2.65542649]
[1739190432465,3.76265,2657.7,2657.6,2.65542649]
[1739190433359,4.52495,2657.7,2657.6,0.06238994]
[1739190433559,3.76335,2657.2,2656.7,6.12307057]
[1739190433760,4.52565,2657.2,2656.4,2.65542649]
[1739190434002,3.76435,2656.5,2656.4,2.65542649]
[1739190434370,3.76435,2656.5,2656.1,2.65542649]
[1739190434583,3.76477,2656.2,2656.1,2.65542649]
[1739190434962,0.7623,2656.8,2656.1,2.65542649]
[1739190435167,3.76393,2656.8,2656.5,2.65542649]
[1739190435393,3.76409,2656.7,2656.5,2.65542649]
[1739190435960,3.76403,2656.8,2656.5,2.65542649]
[1739190436160,3.76379,2656.9,2656.5,2.65542649]
[1739190436892,3.76394,2656.8,2656.5,2.65542649]
[1739190437412,3.76379,2656.9,2656.5,2.65542649]
[1739190438067,3.76367,2657.0,2656.8,2.65542649]
[1739190438270,3.76369,2657.0,2656.8,2.65542649]
[1739190438686,3.76362,2657.1,2656.8,2.65542649]
[1739190438888,7.52722,2657.1,2656.8,2.65542649]
[1739190439197,3.76365,2657.0,2656.8,2.65542649]
[1739190439401,3.76378,2656.9,2656.8,2.65542649]
[1739190439817,3.7636,2657.1,2656.8,2.65542649]
[1739190440016,3.76378,2656.9,2656.8,2.65542649]
[1739190440513,3.7636,2657.1,2656.8,2.65542649]
[1739190441181,3.76463,2656.3,2656.2,2.65542649]
[1739190441621,3.76482,2656.2,2655.9,2.65542649]
[1739190441919,3.7635,2657.1,2655.4,5.8336029]
[1739190441920,3.76528,2655.9,2655.6,2.65542649]
[1739190442288,3.76548,2655.7,2655.6,2.65542649]
[1739190442524,0.7623,2656.5,2655.6,2.65542649]
[1739190442525,3.76491,2656.2,2655.6,2.65542649]
[1739190442732,3.76491,2656.2,2655.6,6.42095649]
[1739190443313,3.76491,2656.2,2655.6,2.65542649]
[1739190443487,3.76502,2656.1,2655.6,2.65542649]
[1739190443687,3.76491,2656.2,2655.9,2.65542649]
[1739190443888,0.7623,2656.5,2655.6,2.65542649]
[1739190443889,3.76514,2656.0,2655.6,2.65542649]
[1739190444222,3.76622,2655.2,2655.0,2.65542649]
[1739190444397,0.7623,2655.5,2654.2,3.42322649]
[1739190444398,3.76679,2654.8,2654.2,3.42322649]
[1739190444717,3.76684,2654.8,2654.2,7.19080649]
[1739190444927,3.76695,2654.7,2654.2,3.42322649]
[1739190445085,3.76713,2654.6,2654.2,3.42322649]
[1739190445290,3.76713,2654.6,2654.2,2.65542649]
[1739190445486,3.76733,2654.4,2654.2,2.65542649]
[1739190445707,0.7623,2654.8,2654.0,2.86927519]
[1739190445900,0.7623,2655.2,2654.4,2.86927519]
[1739190446094,4.52818,2655.5,2654.8,7.5333]
[1739190446303,4.52818,2655.5,2654.8,3.76664]
[1739190446501,4.52818,2655.5,2654.9,3.76658]
[1739190447032,3.76588,2655.5,2654.9,3.76658]
[1739190447248,3.76551,2655.7,2655.1,3.76623]
[1739190447536,0.31780711,2655.8,2655.4,3.7658]
[1739190447909,0.31780711,2655.8,2655.2,7.40322519]
[1739190448112,0.31780711,2655.8,2655.4,3.76586]
[1739190448303,3.76491,2656.1,2655.4,7.53165]
[1739190448511,0.7623,2656.2,2655.6,3.76562]
[1739190448815,3.76441,2656.5,2655.8,3.76533]
[1739190449026,3.76466,2656.3,2655.7,3.76547]
[1739190449438,3.76437,2656.5,2655.9,3.76519]
[1739190449638,3.76437,2656.5,2655.7,3.76547]
[1739190449802,3.76472,2656.3,2655.7,3.76547]
[1739190450321,3.76451,2656.4,2655.8,3.76532]
[1739190450625,3.76467,2656.3,2655.7,3.76547]
[1739190451018,3.76437,2656.5,2655.7,3.76539]
[1739190451221,7.52884,2656.5,2655.8,3.76525]
[1739190451415,3.76473,2656.3,2655.7,3.76539]
[1739190451638,3.76478,2656.2,2655.7,3.76539]
[1739190451811,3.76473,2656.3,2655.7,3.76539]
[1739190452556,3.76498,2656.1,2655.5,3.7657]
[1739190453447,3.76498,2656.1,2655.5,3.76575]
[1739190453749,3.76523,2655.9,2655.3,7.53193]
[1739190454256,3.76549,2655.7,2655.2,7.40326519]
[1739190454597,3.76549,2655.7,2655.2,2.86927519]
[1739190454714,3.76549,2655.7,2655.2,6.63546519]
[1739190455248,3.76549,2655.7,2655.2,2.86927519]
[1739190455452,0.19903082,2655.6,2655.2,2.86927519]
[1739190455637,0.19903082,2655.6,2655.4,3.76581]
[1739190455950,0.19903082,2655.6,2655.5,3.76576]
[1739190457047,0.51949132,2655.6,2655.5,4.53356]
[1739190457755,0.51949132,2655.6,2655.5,3.76576]
[1739190458050,0.51949132,2655.6,2655.2,11.16924519]
[1739190458228,0.51949132,2655.6,2655.3,3.76602]
[1739190458442,0.19903082,2655.6,2655.3,3.76602]
[1739190458852,0.19903082,2655.6,2655.4,3.76587]
[1739190459060,0.19903082,2655.6,2655.5,3.76576]
[1739190459661,0.19903082,2656.0,2655.5,3.76576]
[1739190459992,7.53055,2655.9,2655.3,3.76601]
[1739190460166,3.76521,2655.9,2655.2,6.63545519]
[1739190460334,3.76558,2655.7,2655.2,2.86927519]
[1739190460533,0.7716,2655.6,2655.2,2.86927519]
[1739190461301,3.76625,2655.2,2654.6,3.76696]
[1739190461576,0.7832,2655.5,2654.8,3.76667]
[1739190461780,0.7832,2655.5,2654.9,3.7665]
[1739190461982,0.7832,2655.5,2655.0,3.76637]
[1739190462277,4.54899,2655.5,2655.0,3.76637]
[1739190462477,3.76602,2655.4,2654.8,3.76667]
[1739190462846,3.76602,2655.4,2654.8,7.53334]
[1739190463053,3.76602,2655.4,2654.8,3.76667]
[1739190463241,3.96505082,2655.4,2654.9,3.76654]
[1739190463648,0.19903082,2655.4,2655.0,3.76645]
[1739190464053,0.19903082,2655.4,2655.1,3.76624]
[1739190464333,0.19903082,2655.4,2655.0,7.53282]
[1739190464533,0.19903082,2655.4,2655.1,3.76632]
[1739190464934,0.19903082,2655.3,2655.1,3.76632]
[1739190465439,0.19903082,2655.3,2655.2,3.76619]
[1739190466844,0.19903082,2655.3,2655.1,7.53256]
[1739190467043,0.19903082,2655.3,2655.1,3.76624]
[1739190467245,0.19903082,2655.3,2655.2,3.76619]
[1739190467468,3.76622,2655.2,2654.8,2.86927519]
[1739190467653,3.96517082,2655.3,2654.8,2.86927519]
[1739190467858,3.71530082,2655.5,2654.9,3.76654]
[1739190468052,3.71530082,2655.5,2655.0,3.76646]
[1739190468260,3.71530082,2655.5,2654.8,6.63595519]
[1739190468444,3.76586,2655.5,2654.8,6.63595519]
[1739190468781,3.76761,2654.2,2653.8,5.8336029]
[1739190468944,0.7832,2654.8,2653.6,2.86927519]
[1739190469145,3.76802,2654.0,2653.6,2.86927519]
[1739190469348,3.55,2654.7,2653.7,3.76832]
[1739190469607,0.7832,2654.3,2653.7,3.76832]
[1739190469888,0.7832,2654.3,2654.0,3.76777]
[1739190470177,0.7832,2654.7,2654.2,2.67920643]
[1739190470476,0.7832,2654.7,2654.3,3.76745]
[1739190470664,0.7832,2654.7,2654.3,3.76747]
[1739190470868,0.7832,2654.7,2654.5,6.44631643]
[1739190471068,3.7832,2655.1,2654.6,3.76704]
[1739190471379,3.7832,2655.1,2654.1,3.76767]
[1739190471380,0.7832,2655.1,2654.8,6.44592643]
[1739190471554,0.7832,2655.5,2655.0,3.76647]
[1739190471756,0.7832,2655.5,2655.1,3.7663]
[1739190471960,0.7832,2655.5,2655.4,3.76591]
[1739190472153,0.7832,2655.5,2655.1,3.76624]
[1739190472466,0.7832,2655.5,2654.7,6.63468666]
[1739190472467,4.54898,2655.5,2654.7,6.63468666]
[1739190472783,3.76613,2655.3,2654.8,3.76674]
[1739190473079,3.76613,2655.3,2654.7,6.63463666]
[1739190473282,0.7832,2655.3,2653.9,6.71713666]
[1739190473471,3.76693,2654.7,2654.1,3.76763]
[1739190473776,0.7832,2654.6,2654.1,3.76763]
[1739190473952,3.76727,2654.5,2653.9,6.63583666]
[1739190474147,3.76729,2654.5,2653.9,6.63581666]
[1739190474346,3.76755,2654.3,2653.7,3.76827]
[1739190474773,0.7795,2654.2,2653.7,3.76831]
[1739190474972,4.54714,2654.2,2653.5,6.63636666]
[1739190475151,3.76799,2654.0,2653.5,2.86783666]
[1739190475353,3.76799,2654.0,2653.5,6.63641666]
[1739190475562,4.54719,2654.2,2653.6,3.76845]
[1739190475857,0.7795,2654.2,2653.9,3.76796]
[1739190476067,0.7795,2654.2,2654.0,3.76787]
[1739190476263,0.7795,2654.2,2653.9,3.76796]
[1739190476480,0.7795,2654.2,2653.7,3.7682]
[1739190477177,4.54721,2654.2,2653.5,6.63634666]
[1739190477377,4.54721,2654.2,2653.7,3.76831]
[1739190477784,0.7795,2654.2,2653.8,3.76815]
[1739190477967,0.7795,2654.2,2653.9,3.76793]
[1739190478173,0.8124,2654.6,2654.3,3.76746]
[1739190478478,4.57947,2654.6,2654.1,3.76765]
[1739190478983,3.7674,2654.4,2653.7,3.76824]
[1739190479390,3.7674,2654.4,2653.9,3.76801]
[1739190479593,0.8124,2654.6,2653.9,2.86783666]
[1739190479774,4.57945,2654.6,2654.1,3.76766]
[1739190480275,4.57945,2654.6,2653.9,6.63581666]
[1739190480471,0.8124,2654.6,2653.9,2.86783666]
[1739190480670,4.5795,2654.6,2653.7,3.76824]
[1739190480875,3.76741,2654.4,2653.9,3.768]
[1739190481278,3.76741,2654.4,2653.5,2.94913666]